bitfinex/quotes_BTCUSD_20251201
["timestamp","ask_amount","ask_price","bid_price","bid_amount"]
[1764609902198,0.00064994,85018.0,85017.0,0.83167601]
[1764609902422,0.00064994,85018.0,85017.0,0.61185489]
[1764609902620,0.00064994,85018.0,85017.0,0.1493319]
[1764609902823,0.00064994,85018.0,85017.0,0.03510594]
[1764609903308,0.23589424,85018.0,85017.0,0.005]
[1764609903524,0.23525536,85014.0,85013.0,0.01142594]
[1764609903727,0.23531113,84994.0,84988.0,0.01176636]
[1764609903932,0.01176525,84996.0,84995.0,0.01142594]
[1764609904139,0.23530508,84997.0,84996.0,0.01142594]
[1764609904346,0.23530508,84997.0,84989.0,0.05349628]
[1764609904347,0.2353218,84990.0,84989.0,0.03481628]
[1764609904563,0.01176636,84988.0,84985.0,0.01868]
[1764609904769,0.01176636,84988.0,84987.0,0.01142594]
[1764609904890,0.2470937,84988.0,84987.0,0.01142594]
[1764609905105,0.01176622,84989.0,84988.0,0.01142594]
[1764609905325,0.24709088,84989.0,84988.0,0.01142594]
[1764609906734,0.24709088,84989.0,84988.0,0.01242594]
[1764609906952,0.24709088,84989.0,84988.0,0.05422592]
[1764609907182,0.24709088,84989.0,84988.0,0.01242594]
[1764609907714,0.24709088,84989.0,84988.0,0.01642594]
[1764609909419,0.01176525,84996.0,84991.0,0.01176595]
[1764609909617,0.01176539,84995.0,84994.0,0.01142594]
[1764609909822,0.0121542,84996.0,84994.0,0.01142594]
[1764609910168,0.00038895,84996.0,84995.0,0.01142594]
[1764609910907,0.00038895,84996.0,84995.0,0.24673389]
[1764609911714,0.00038895,84996.0,84995.0,0.24973389]
[1764609911922,0.00038895,84996.0,84995.0,0.3293471]
[1764609912147,0.00038895,84996.0,84995.0,0.3303471]
[1764609913520,0.00038895,84996.0,84995.0,0.09503915]
[1764609913920,0.00038895,84996.0,84995.0,0.3303471]
[1764609915445,0.00038895,84996.0,84995.0,0.3490271]
[1764609915679,0.00038895,84996.0,84995.0,0.73455009]
[1764609916110,0.00038895,84996.0,84995.0,1.13455009]
[1764609917457,0.00038895,84996.0,84995.0,1.21912736]
[1764609918290,0.00038895,84996.0,84995.0,1.13455009]
[1764609919855,0.00038895,84996.0,84995.0,1.13355009]
[1764609920057,0.00038895,84996.0,84995.0,1.13055009]
[1764609920259,0.00038895,84996.0,84995.0,1.13455009]
[1764609920646,0.00038895,84996.0,84995.0,1.13055009]
[1764609920845,0.00038895,84996.0,84995.0,1.13555009]
[1764609921541,0.00038895,84996.0,84995.0,1.25378135]
[1764609921732,0.00038895,84996.0,84995.0,1.25376963]
[1764609921932,0.00038895,84996.0,84995.0,1.25276963]
[1764609922135,0.00038895,84996.0,84995.0,1.14730884]
[1764609922338,0.00038895,84996.0,84995.0,1.13755009]
[1764609923003,0.00038895,84996.0,84995.0,0.7520271]
[1764609923215,0.00038895,84996.0,84995.0,0.3520271]
[1764609923412,0.00038895,84996.0,84995.0,0.59541389]
[1764609923629,0.00038895,84996.0,84995.0,0.65793688]
[1764609923830,0.00038895,84996.0,84995.0,0.27241389]
[1764609924032,0.00038895,84996.0,84995.0,0.59541389]
[1764609924237,0.00038895,84996.0,84995.0,0.65093688]
[1764609924435,0.00038895,84996.0,84995.0,0.76816284]
[1764609924640,0.00038895,84996.0,84995.0,0.77016284]
[1764609925050,0.00038895,84996.0,84995.0,0.76816284]
[1764609925464,0.00038895,84996.0,84995.0,0.1483319]
[1764609925666,0.23569414,84996.0,84995.0,0.02168]
[1764609926081,0.23569414,84996.0,84995.0,0.03310594]
[1764609926283,0.23569414,84996.0,84995.0,0.03110594]
[1764609926492,0.00038895,84996.0,84995.0,0.02168]
[1764609926694,0.00038895,84996.0,84995.0,0.59984894]
[1764609927102,0.00038895,84996.0,84995.0,0.04154099]
[1764609927314,0.23569414,84996.0,84995.0,0.01342594]
[1764609927649,0.23569414,84996.0,84995.0,0.01442594]
[1764609928042,0.00038895,84996.0,84995.0,0.01442594]
[1764609928248,0.23569414,84996.0,84995.0,0.01342594]
[1764609928716,0.23569414,84996.0,84995.0,0.01442594]
[1764609929690,0.23569414,84996.0,84995.0,0.001]
[1764609930456,0.23569414,84996.0,84995.0,0.003]
[1764609931077,0.23569414,84996.0,84995.0,0.01442594]
[1764609931439,0.23569414,84996.0,84995.0,0.02050781]
[1764609932913,0.23569414,84996.0,84995.0,0.00908187]
[1764609933214,0.23569414,84996.0,84995.0,0.003]
[1764609933866,0.07127248,84996.0,84995.0,0.003]
[1764609935729,0.07127248,84996.0,84995.0,0.01442594]
[1764609936089,0.10737523,84997.0,84996.0,0.01142594]
[1764609936211,0.10749178,84997.0,84996.0,0.01142594]
[1764609937339,0.01868,85034.0,84995.0,0.003]
[1764609937340,1.12097161,85030.0,85017.0,0.23524706]
[1764609937531,0.00035244,85018.0,85017.0,0.25877177]
[1764609937729,0.00035244,85018.0,85017.0,0.38124388]
[1764609939868,0.00035244,85018.0,85017.0,0.38224388]
[1764609940656,0.00035244,85018.0,85017.0,0.38324388]
[1764609941061,0.2352143,85029.0,85026.0,0.23522117]
[1764609941263,0.2352143,85029.0,85028.0,0.01142594]
[1764609941675,0.00035881,85029.0,85028.0,0.24664257]
[1764609941875,0.00035881,85029.0,85028.0,0.01142594]
[1764609942878,0.23557267,85029.0,85028.0,0.01142594]
[1764609943389,0.23557267,85029.0,85028.0,0.03844331]
[1764609943966,0.00035881,85029.0,85028.0,0.03844331]
[1764609944219,0.23557267,85029.0,85028.0,0.03844331]
[1764609945810,0.23524269,85019.0,85016.0,0.01142594]
[1764609946053,0.23526226,85012.0,85010.0,0.01868]
[1764609946288,0.23526643,85010.0,85009.0,0.01142594]
[1764609946508,0.24703878,85007.0,85000.0,0.11104617]
[1764609946728,0.23528858,85002.0,85001.0,0.05142426]
[1764609947161,0.01176346,85009.0,85004.0,0.01176415]
[1764609947382,0.01176249,85016.0,85012.0,0.01142594]
[1764609947563,0.01176318,85011.0,85006.0,0.01176387]
[1764609947795,0.24702685,85011.0,85010.0,0.01142594]
[1764609948330,0.01176318,85011.0,85010.0,0.01142594]
[1764609948532,0.24702685,85011.0,85010.0,0.01142594]
[1764609948932,0.01176124,85025.0,85013.0,0.0117629]
[1764609949132,0.2470036,85019.0,85018.0,0.01142594]
[1764609949854,0.2470036,85019.0,85018.0,0.02484946]
[1764609950019,0.1370036,85019.0,85018.0,0.01142594]
[1764609950370,0.14876567,85019.0,85018.0,0.01142594]
[1764609951604,0.24698938,85024.0,85021.0,0.01142594]
[1764609951811,0.2469944,85023.0,85022.0,0.01142594]
[1764609952015,0.2469944,85023.0,85022.0,0.06164864]
[1764609952529,0.24701232,85016.0,85013.0,0.11104617]
[1764609952710,0.23525536,85014.0,85013.0,0.12247211]
[1764609953217,0.23525361,85015.0,85014.0,0.01142594]
[1764609953622,0.24701239,85016.0,85015.0,0.01142594]
[1764609954588,0.2470069,85018.0,85014.0,0.01176276]
[1764609954807,0.2470069,85018.0,85017.0,0.01142594]
[1764609955010,0.01176193,85020.0,85018.0,0.01142594]
[1764609955215,0.24700621,85020.0,85017.0,0.23524635]
[1764609955416,0.24699822,85021.0,85018.0,0.01176221]
[1764609955655,0.23524153,85019.0,85018.0,0.01142594]
[1764609955863,0.23524153,85019.0,85018.0,0.06747571]
[1764609956287,0.24700651,85018.0,85015.0,0.01242594]
[1764609956485,0.23524938,85017.0,85015.0,0.01242594]
[1764609956688,0.23524153,85019.0,85016.0,0.23524954]
[1764609956901,0.23524153,85019.0,85017.0,0.23524627]
[1764609957051,0.23524153,85019.0,85018.0,0.01142594]
[1764609957861,0.01176193,85020.0,85018.0,0.2352443]
[1764609958076,0.24700069,85020.0,85019.0,0.01142594]
[1764609958281,0.24700069,85020.0,85019.0,0.07428498]
[1764609958542,0.24700069,85020.0,85019.0,0.01142594]
[1764609959222,0.24700069,85020.0,84980.0,0.77333398]
[1764609959223,0.23525599,85014.0,85013.0,0.12247211]
[1764609960332,0.23525599,85014.0,85013.0,0.11104617]
[1764609960812,0.23525599,85014.0,85003.0,0.01176429]
[1764609960813,0.01176401,85005.0,85002.0,0.01142594]
[1764609960926,0.01176415,85004.0,85000.0,0.11113762]
[1764609961132,0.323,85037.0,85020.0,0.01176193]
[1764609961330,0.03153061,85060.0,85020.0,0.01176193]
[1764609961331,0.01175792,85049.0,85025.0,0.35769704]
[1764609961619,0.66896279,85050.0,85025.0,0.42022003]
[1764609961820,0.24692582,85046.0,85025.0,0.42022003]
[1764609962123,0.01176014,85033.0,85022.0,0.11104617]
[1764609962240,0.68072265,85035.0,85025.0,0.01142594]
[1764609962446,0.68072265,85035.0,85025.0,0.23522493]
[1764609962702,0.23521595,85029.0,85023.0,0.01646761]
[1764609962902,0.01176041,85031.0,85025.0,0.01142594]
[1764609963210,0.24696311,85033.0,85025.0,0.24665087]
[1764609963404,0.24694213,85041.0,85025.0,0.31416281]
[1764609963615,0.01176041,85031.0,85025.0,0.31416281]
[1764609964438,0.01175986,85035.0,85025.0,0.31416281]
[1764609964612,0.24695718,85035.0,85025.0,0.31416281]
[1764609964786,0.24695469,85036.0,85025.0,0.31416281]
[1764609964985,0.68072196,85040.0,85025.0,0.31416281]
[1764609965200,0.01175944,85038.0,85025.0,0.31416281]
[1764609965437,0.24693919,85042.0,85025.0,0.31416281]
[1764609965651,0.24694315,85040.0,85025.0,0.31416281]
[1764609965861,0.01175861,85044.0,85025.0,0.3766858]
[1764609966213,0.24693101,85044.0,85025.0,0.3766858]
[1764609966525,0.01175861,85044.0,85025.0,0.3766858]
[1764609967127,0.24693102,85044.0,85025.0,0.3796858]
[1764609967559,0.01175861,85044.0,85025.0,0.3806858]
[1764609967731,0.0117582,85047.0,85025.0,0.3806858]
[1764609968140,0.01868,85054.0,85025.0,0.7036858]
[1764609968141,0.01175723,85054.0,85025.0,0.7036858]
[1764609968337,0.01175765,85051.0,85025.0,0.7036858]
[1764609968545,0.23513939,85056.0,85025.0,0.7036858]
[1764609968546,0.23514175,85056.0,85025.0,0.7036858]
[1764609968737,0.01175709,85055.0,85025.0,0.7036858]
[1764609969112,0.01175834,85046.0,85025.0,0.7036858]
[1764609969314,0.66896279,85050.0,85025.0,0.07151194]
[1764609969315,0.01176083,85028.0,85025.0,0.07151194]
[1764609969513,0.24698016,85028.0,85025.0,0.004]
[1764609969713,0.23522037,85027.0,85025.0,0.004]
[1764609969826,0.23548312,85026.0,85025.0,0.004]
[1764609970442,0.23548312,85026.0,85000.0,9.145e-05]
[1764609970443,0.24704701,85005.0,85001.0,0.12520443]
[1764609970644,0.23528661,85003.0,85001.0,0.13663037]
[1764609970887,0.23528858,85002.0,85000.0,9.145e-05]
[1764609971691,0.23528858,85002.0,85001.0,0.001]
[1764609971902,0.23528858,85002.0,85001.0,0.003]
[1764609972051,0.23528858,85002.0,85001.0,0.002]
[1764609972989,0.23528858,85002.0,85000.0,0.00109145]
[1764609973352,0.23528858,85002.0,85000.0,0.00209145]
[1764609973552,0.24705027,85003.0,85000.0,0.00109145]
[1764609973754,0.23528926,85002.0,85000.0,9.145e-05]
[1764609974005,0.23528926,85002.0,85001.0,0.001]
[1764609974617,0.23528926,85002.0,85000.0,0.00109145]
[1764609974817,0.23528926,85002.0,85000.0,9.145e-05]
[1764609975019,0.23528926,85002.0,85001.0,0.001]
[1764609975171,0.23422235,85002.0,85001.0,0.001]
[1764609977239,0.23422235,85002.0,85001.0,0.002]
[1764609977682,0.35281574,85031.0,85008.0,0.01142594]
[1764609977851,0.01176207,85019.0,85011.0,0.11104617]
[1764609978026,0.66896279,85030.0,85017.0,0.01176235]
[1764609978027,0.01176124,85025.0,85017.0,0.01176235]
[1764609978223,0.01176097,85027.0,85022.0,0.0231876]
[1764609978475,0.24724431,85026.0,85022.0,0.24665869]
[1764609978679,0.00026096,85026.0,85022.0,0.0231876]
[1764609978916,0.23522493,85025.0,85024.0,0.11104617]
[1764609979088,0.2352277,85024.0,85022.0,0.01142594]
[1764609979244,0.23523046,85023.0,85022.0,0.01142594]
[1764609979447,0.23523991,85020.0,85019.0,0.01142594]
[1764609979844,0.01176166,85022.0,85021.0,0.01142594]
[1764609980060,0.00026096,85026.0,85022.0,0.23523323]
[1764609980312,0.23548341,85026.0,85025.0,0.01142594]
[1764609980832,0.00026096,85026.0,85025.0,0.01142594]
[1764609981194,0.00026096,85026.0,85025.0,0.24665087]
[1764609981641,0.00026096,85026.0,85025.0,0.35769704]
[1764609981787,0.00026096,85026.0,85025.0,0.45062482]
[1764609981997,0.00026096,85026.0,85025.0,0.21539989]
[1764609982195,0.00026096,85026.0,85025.0,0.20397395]
[1764609982419,0.00026096,85026.0,85025.0,0.45062482]
[1764609982622,0.01176055,85030.0,85029.0,0.01142594]
[1764609982824,0.24696406,85033.0,85029.0,0.08353889]
[1764609983194,0.24696406,85033.0,85029.0,0.08387364]
[1764609983345,0.2352111,85030.0,85029.0,0.07211295]
[1764609983590,0.2352111,85030.0,85020.0,0.24699999]
[1764609983591,0.24699489,85022.0,85021.0,0.01142594]
[1764609983912,0.01176152,85023.0,85022.0,0.01142594]
[1764609985261,0.2352277,85024.0,85022.0,0.01142594]
[1764609985458,0.01176124,85025.0,85022.0,0.01142594]
[1764609985860,0.01176041,85031.0,85024.0,0.11104617]
[1764609986069,0.01175958,85037.0,85033.0,0.01142594]
[1764609986337,0.23546095,85034.0,85033.0,0.01142594]
[1764609986540,0.00026092,85034.0,85033.0,0.01142594]
[1764609987151,0.00026092,85034.0,85033.0,0.2352028]
[1764609987358,0.00026092,85034.0,85033.0,0.24662874]
[1764609987561,0.00026092,85034.0,85033.0,0.32186117]
[1764609987839,0.00026092,85034.0,85033.0,0.08665837]
[1764609988036,0.00026092,85034.0,85029.0,0.02318663]
[1764609988037,0.24722095,85034.0,85029.0,0.02318663]
[1764609988277,0.24722095,85034.0,85030.0,0.01142594]
[1764609988278,0.23520906,85031.0,85030.0,0.01142594]
[1764609989015,0.00026092,85034.0,85030.0,0.01142594]
[1764609989233,0.23520556,85032.0,85031.0,0.01142594]
[1764609989439,0.01176014,85033.0,85031.0,0.01142594]
[1764609989646,0.01202092,85034.0,85033.0,0.01142594]
[1764609989844,0.01202092,85034.0,85032.0,0.03006025]
[1764609990052,0.01176014,85033.0,85030.0,0.01142594]
[1764609990504,0.23520833,85031.0,85030.0,0.01142594]
[1764609990703,0.01176014,85033.0,85030.0,0.01142594]
[1764609990908,0.23520642,85032.0,85030.0,0.01142594]
[1764609991308,0.23520642,85032.0,85029.0,0.24697352]
[1764609991525,0.23520642,85032.0,85031.0,0.01142594]
[1764609991689,0.24696298,85033.0,85031.0,0.01142594]
[1764609991888,0.24696298,85033.0,85030.0,0.32256461]
[1764609992091,0.24696298,85033.0,85032.0,0.01142594]
[1764609992262,0.23520833,85031.0,85030.0,0.09877956]
[1764609992456,0.23520556,85032.0,85028.0,0.01176083]
[1764609992659,0.23520556,85032.0,85031.0,0.01142594]
[1764609992919,0.01176014,85033.0,85032.0,0.01142594]
[1764609993299,0.24722146,85034.0,85033.0,0.01142594]
[1764609993631,0.24697133,85031.0,85030.0,0.01142594]
[1764609993823,0.24697133,85031.0,85030.0,0.05287889]
[1764609994590,0.24696299,85033.0,85030.0,0.04145295]
[1764609994795,0.24696299,85033.0,85032.0,0.01142594]
[1764609995149,0.23520825,85032.0,85031.0,0.01142594]
[1764609995535,0.0117629,85013.0,85008.0,0.01868]
[1764609995734,0.0117629,85013.0,84986.0,0.10546079]
[1764609995735,0.01176373,85007.0,84970.0,0.0943712]
[1764609995936,0.01176373,85007.0,85004.0,9.145e-05]
[1764609995937,0.23528027,85005.0,85004.0,9.145e-05]
[1764609996760,0.23528027,85005.0,85004.0,0.00309145]
[1764609997164,0.23528027,85005.0,85004.0,9.145e-05]
[1764609997364,0.23528027,85005.0,85004.0,0.00109145]
[1764609997580,0.23528027,85005.0,85004.0,0.02590696]
[1764609997777,0.23528027,85005.0,85004.0,0.00109145]
[1764609998194,0.23528027,85005.0,85004.0,0.00209145]
[1764609998638,0.23528027,85005.0,85004.0,0.00109145]
[1764609999069,0.23528027,85005.0,85004.0,0.00209145]
[1764609999663,0.23528027,85005.0,85004.0,9.145e-05]
[1764610004342,0.01868,85007.0,85004.0,9.145e-05]
[1764610004542,0.23528027,85005.0,85004.0,9.145e-05]
[1764610004775,0.23508027,85005.0,85004.0,9.145e-05]
[1764610004954,0.2352775,85006.0,85004.0,9.145e-05]
[1764610005172,0.2352775,85006.0,85005.0,0.02589121]
[1764610005375,0.01156456,85001.0,84999.0,0.01142594]
[1764610005676,0.01868,85007.0,85001.0,0.01176456]
[1764610005900,0.01868,85012.0,85006.0,0.01176387]
[1764610006051,0.24683242,85010.0,85006.0,0.01176387]
[1764610006237,0.23526987,85009.0,85006.0,0.07345413]
[1764610006580,0.23526406,85011.0,85008.0,0.01176359]
[1764610006788,0.24703266,85009.0,85008.0,0.01142559]
[1764610006934,0.0117629,85013.0,85009.0,0.23526666]
[1764610007134,0.23205736,85016.0,85009.0,0.23506666]
[1764610007357,0.23526092,85012.0,85010.0,0.08143559]
[1764610007521,0.23526092,85012.0,85011.0,0.01142559]
[1764610007723,0.01176263,85015.0,85011.0,0.23526112]
[1764610007922,0.2470179,85015.0,85011.0,0.23526121]
[1764610008126,0.24700679,85018.0,85012.0,0.01176304]
[1764610008332,0.01176221,85018.0,85014.0,0.23525275]
[1764610008549,0.01176221,85018.0,85017.0,0.01142559]
[1764610008820,0.01176069,85029.0,85017.0,0.01142559]
[1764610009046,0.01175958,85037.0,85033.0,0.2352028]
[1764610009254,0.23518878,85040.0,85033.0,0.26221779]
[1764610009479,0.68072057,85050.0,85033.0,0.26221779]
[1764610009700,0.2469285,85045.0,85033.0,0.27264338]
[1764610009872,0.2469285,85045.0,85033.0,0.26221779]
[1764610010051,0.23517238,85044.0,85033.0,0.27364338]
[1764610010247,0.00037749,85034.0,85033.0,0.27364338]
[1764610010446,0.00037749,85034.0,85033.0,0.27464338]
[1764610011525,0.00037749,85034.0,85033.0,0.27664338]
[1764610011957,0.00037749,85034.0,85033.0,0.27464338]
[1764610012144,0.00037749,85034.0,85033.0,0.27664338]
[1764610012376,0.00037749,85034.0,85033.0,0.27364338]
[1764610012775,0.00037749,85034.0,85033.0,0.27664338]
[1764610013185,0.00037749,85034.0,85033.0,0.27564338]
[1764610013473,0.00037749,85034.0,85033.0,0.27664338]
[1764610013900,0.00037749,85034.0,85033.0,0.26521779]
[1764610014263,0.00037749,85034.0,85033.0,0.27664338]
[1764610014464,0.00037749,85034.0,85033.0,0.27464338]
[1764610014861,0.00037749,85034.0,85033.0,0.27664338]
[1764610015087,0.00037749,85034.0,85033.0,0.27364338]
[1764610015519,0.00017749,85034.0,85033.0,0.27564338]
[1764610015860,0.00017749,85034.0,85033.0,0.27644338]
[1764610016509,0.00017749,85034.0,85033.0,0.27544338]
[1764610016859,0.00017749,85034.0,85033.0,0.27644338]
[1764610017264,0.00017749,85034.0,85033.0,0.33896637]
[1764610021830,0.00017749,85034.0,85033.0,0.66196637]
[1764610022221,1e-08,85034.0,85033.0,0.78395498]
[1764610022385,1e-08,85034.0,85033.0,0.86732619]
[1764610022587,1e-08,85034.0,85033.0,0.78795498]
[1764610022796,1e-08,85034.0,85033.0,0.78495498]
[1764610022994,0.00010001,85070.0,85069.0,0.23510326]
[1764610023212,0.00010001,85070.0,85069.0,0.2723903]
[1764610023213,0.00020972,85070.0,85069.0,0.2723903]
[1764610023412,0.00020972,85070.0,85069.0,0.2721903]
[1764610023592,0.00020972,85070.0,85069.0,0.02586145]
[1764610024163,0.24684854,85073.0,85070.0,0.01142559]
[1764610024386,0.24684854,85073.0,85071.0,0.05359316]
[1764610024590,0.23509497,85072.0,85071.0,0.05339316]
[1764610024795,0.23509774,85071.0,85070.0,0.01142559]
[1764610025072,0.01175516,85069.0,85068.0,0.01142559]
[1764610025366,0.01175516,85069.0,85064.0,0.2468704]
[1764610025367,0.01195364,85080.0,85072.0,0.01175474]
[1764610025601,0.0002,85080.0,85077.0,0.23507852]
[1764610025774,0.0002,85080.0,85079.0,0.23507563]
[1764610025972,0.0002,85080.0,85079.0,0.24650087]
[1764610026176,0.0002,85080.0,85079.0,0.23507563]
[1764610026405,0.0002,85080.0,85079.0,0.01142524]
[1764610026604,0.0002,85080.0,85079.0,0.24650087]
[1764610026781,0.0002,85080.0,85079.0,0.33847998]
[1764610027778,0.01175115,85098.0,85089.0,0.0117524]
[1764610029968,0.0117524,85089.0,85088.0,0.0114249]
[1764610030283,0.2468004,85089.0,85088.0,0.0114249]
[1764610030843,0.23504012,85092.0,85089.0,0.25822404]
[1764610031022,0.23504012,85092.0,85090.0,0.11104617]
[1764610031225,0.23504248,85091.0,85090.0,0.11104617]
[1764610031424,0.23504248,85091.0,85090.0,0.19743599]
[1764610031638,0.235048,85089.0,85088.0,0.001]
[1764610032043,0.235048,85089.0,85087.0,0.12247107]
[1764610032479,0.24679756,85090.0,85088.0,0.0114249]
[1764610032711,0.23505077,85088.0,85087.0,0.0114249]
[1764610032839,0.0117535,85081.0,85080.0,0.0114249]
[1764610033206,0.0117535,85081.0,85072.0,0.01175474]
[1764610033207,0.01175461,85073.0,85066.0,0.01175557]
[1764610033518,0.24684688,85073.0,85072.0,0.0114249]
[1764610033699,0.01175461,85073.0,85072.0,0.07520008]
[1764610034123,0.24684682,85073.0,85072.0,0.07520008]
[1764610034313,0.01175405,85077.0,85071.0,0.01175488]
[1764610034468,0.01175433,85075.0,85074.0,0.11104617]
[1764610034702,0.24684101,85075.0,85074.0,0.11104617]
[1764610034903,0.01175433,85075.0,85074.0,0.11104617]
[1764610035108,0.01175433,85075.0,85074.0,0.12247107]
[1764610035429,0.24684071,85076.0,85075.0,0.0114249]
[1764610035606,0.01175419,85076.0,85075.0,0.0114249]
[1764610036158,0.24683537,85077.0,85076.0,0.0114249]
[1764610036367,0.24683537,85077.0,85074.0,0.42078216]
[1764610036368,0.23488668,85075.0,85074.0,0.17393831]
[1764610036921,0.23511177,85066.0,85059.0,0.01175654]
[1764610037238,0.24686471,85067.0,85062.0,0.1342272]
[1764610037441,0.24686471,85067.0,85063.0,0.23511733]
[1764610037647,0.24686748,85066.0,85063.0,0.01175599]
[1764610037845,0.24687034,85065.0,85062.0,0.12247107]
[1764610038048,0.24687034,85065.0,85063.0,0.06280002]
[1764610038049,0.24687008,85065.0,85063.0,0.06280002]
[1764610038231,0.24686748,85066.0,85063.0,0.06280002]
[1764610038425,0.24686748,85066.0,85063.0,0.32410045]
[1764610038632,0.24686748,85066.0,85063.0,0.31267555]
[1764610038833,0.24686748,85066.0,85065.0,0.0114249]
[1764610039040,0.24686748,85066.0,85065.0,0.10401582]
[1764610039664,0.24686748,85066.0,85065.0,0.0114249]
[1764610040022,0.23511708,85064.0,85063.0,0.06280002]
[1764610040235,0.0117553,85068.0,85057.0,0.01175682]
[1764610040436,0.2351111,85067.0,85065.0,0.11204617]
[1764610040662,0.23511156,85066.0,85065.0,0.11204617]
[1764610040879,0.23511156,85066.0,85065.0,0.11104617]
[1764610041081,0.2351111,85067.0,85065.0,0.12247107]
[1764610041410,0.0117553,85068.0,85066.0,0.23511144]
[1764610041638,0.01175419,85076.0,85067.0,0.08731732]
[1764610041846,0.24683447,85078.0,85074.0,0.0114249]
[1764610042107,0.2350852,85076.0,85074.0,0.0114249]
[1764610042296,0.23508668,85075.0,85074.0,0.0114249]
[1764610043169,0.24683255,85078.0,85075.0,0.0114249]
[1764610043381,0.23506964,85082.0,85075.0,0.0114249]
[1764610043382,0.23507258,85081.0,85077.0,0.23507872]
[1764610043602,0.23507258,85081.0,85076.0,0.02935439]
[1764610043603,0.01175212,85091.0,85086.0,0.01175281]
[1764610043803,0.24679983,85091.0,85089.0,0.0114249]
[1764610044004,1.12071997,85100.0,85090.0,0.0114249]
[1764610044206,0.01175129,85097.0,85094.0,0.0114249]
[1764610044383,0.01175129,85097.0,85095.0,0.05050126]
[1764610044592,0.23502867,85096.0,85095.0,0.05050126]
[1764610044798,0.23504008,85092.0,85091.0,0.0114249]
[1764610045062,0.24678425,85095.0,85091.0,0.01175212]
[1764610045217,0.23503695,85093.0,85092.0,0.0114249]
[1764610045417,0.01175157,85095.0,85092.0,0.0114249]
[1764610045623,0.23503503,85094.0,85091.0,0.34608845]
[1764610045966,0.24678847,85095.0,85092.0,0.10949649]
[1764610046122,0.24678847,85095.0,85092.0,0.25821421]
[1764610046323,0.2350347,85094.0,85092.0,0.0114249]
[1764610046520,0.00172286,85093.0,85092.0,0.0114249]
[1764610046687,0.00172286,85093.0,85088.0,0.01175253]
[1764610046688,0.23505036,85089.0,85081.0,0.0117535]
[1764610046900,0.24678879,85093.0,85088.0,0.0114249]
[1764610047106,0.23504277,85091.0,85089.0,0.25822265]
[1764610047312,0.24679344,85092.0,85090.0,0.06310367]
[1764610047583,0.24678841,85094.0,85091.0,0.23504235]
[1764610047896,0.24678841,85094.0,85093.0,0.0114249]
[1764610048146,0.24678841,85094.0,85091.0,0.24679457]
[1764610048147,0.24678841,85094.0,85092.0,0.0114249]
[1764610048378,0.23503695,85093.0,85092.0,0.0114249]
[1764610048587,0.23503695,85093.0,85090.0,0.05167877]
[1764610048588,0.23504064,85092.0,85090.0,0.05167877]
[1764610048802,0.23504248,85091.0,85089.0,0.0114249]
[1764610049237,0.2467946,85091.0,85089.0,0.01142455]
[1764610049467,0.01175184,85093.0,85091.0,0.01142455]
[1764610049768,0.2350412,85092.0,85057.0,0.08412776]
[1764610049787,0.23505833,85086.0,85082.0,0.24681832]
[1764610049989,0.24677486,85098.0,85086.0,0.01175281]
[1764610050212,0.23503606,85094.0,85091.0,0.11104617]
[1764610050411,0.24678602,85094.0,85092.0,0.01142455]
[1764610050681,0.23503714,85093.0,85092.0,0.01142455]
[1764610050813,0.23503714,85093.0,85081.0,0.23506961]
[1764610050814,0.01175309,85084.0,85081.0,0.23506961]
[1764610051013,0.01175295,85085.0,85082.0,0.03883035]
[1764610051215,0.23506425,85084.0,85082.0,0.03883035]
[1764610051442,0.23506425,85084.0,85082.0,0.0502549]
[1764610051614,0.23506425,85084.0,85083.0,0.01142455]
[1764610051971,0.24681248,85085.0,85083.0,0.01142455]
[1764610052174,0.01175295,85085.0,85084.0,0.04316318]
[1764610052502,0.24827448,85085.0,85084.0,0.04316318]
[1764610052930,0.05139412,85085.0,85084.0,0.04316318]
[1764610053140,0.06314707,85085.0,85084.0,0.04316318]
[1764610053344,0.06314707,85085.0,85084.0,0.001]
[1764610053856,0.00146228,85085.0,85084.0,0.001]
[1764610054055,0.23652133,85085.0,85084.0,0.001]
[1764610056849,0.24681619,85084.0,85080.0,0.23507068]
[1764610057053,0.24681619,85084.0,85081.0,0.01142455]
[1764610057213,0.23506672,85083.0,85081.0,0.07421318]
[1764610057450,0.0117524,85089.0,85081.0,0.07421318]
[1764610057648,0.24681751,85084.0,85083.0,0.01142455]
[1764610057848,0.23506555,85083.0,85081.0,0.06278863]
[1764610058061,0.24681751,85084.0,85082.0,0.01142455]
[1764610058264,0.01175212,85091.0,85088.0,0.01142455]
[1764610058486,0.24679509,85091.0,85088.0,0.01142455]
[1764610058646,0.235048,85089.0,85088.0,0.01142455]
[1764610059186,0.24681,85086.0,85085.0,0.01142455]
[1764610059498,0.24681,85086.0,85085.0,0.06320688]
[1764610059678,0.24830486,85086.0,85085.0,0.05178233]
[1764610059889,0.23506015,85085.0,85083.0,0.01142455]
[1764610060433,0.00142971,85084.0,85083.0,0.01142455]
[1764610060954,0.00142971,85084.0,85083.0,0.24648913]
[1764610061306,0.00142971,85084.0,85083.0,0.24848913]
[1764610061507,0.00142971,85084.0,85083.0,0.23706458]
[1764610061705,0.00142971,85084.0,85083.0,0.3338398]
[1764610062509,0.00142971,85084.0,85083.0,0.3328398]
[1764610062710,0.00142971,85084.0,85083.0,0.3338398]
[1764610063113,0.00142971,85084.0,85083.0,0.3328398]
[1764610063296,0.00142971,85084.0,85083.0,0.3348398]
[1764610065280,0.00142971,85084.0,85083.0,0.3535198]
[1764610065480,0.00142971,85084.0,85083.0,0.41604279]
[1764610066305,0.00142971,85084.0,85083.0,0.73904279]
[1764610066479,0.00142971,85084.0,85083.0,0.73804279]
[1764610066661,0.00142971,85084.0,85083.0,0.73604279]
[1764610066881,0.00142971,85084.0,85083.0,0.73804279]
[1764610068017,0.00142971,85084.0,85083.0,0.73904279]
[1764610070191,0.00142971,85084.0,85083.0,0.72036279]
[1764610070715,0.00142971,85084.0,85083.0,0.73900279]
[1764610071118,0.00142971,85084.0,85083.0,0.3534798]
[1764610071321,0.00142971,85084.0,85083.0,0.41600279]
[1764610073916,0.00142971,85084.0,85083.0,0.38593824]
[1764610074094,0.00142971,85084.0,85083.0,0.41600279]
[1764610075173,0.00142971,85084.0,85083.0,0.10699067]
[1764610075314,0.00142971,85084.0,85083.0,0.26812913]
[1764610075721,0.00142971,85084.0,85083.0,0.25670458]
[1764610076174,0.00142971,85084.0,85083.0,0.25370458]
[1764610076570,0.00142971,85084.0,85083.0,0.25570458]
[1764610077179,0.00142971,85084.0,85083.0,0.02064]
[1764610077319,0.00142971,85084.0,85083.0,0.0608091]
[1764610077718,0.00142971,85084.0,85083.0,0.25570458]
[1764610077963,0.00142971,85084.0,85083.0,0.26712913]
[1764610078175,0.00142971,85084.0,85083.0,0.25570458]
[1764610078582,0.00142971,85084.0,85083.0,0.25670458]
[1764610078755,0.00142971,85084.0,85083.0,0.25470458]
[1764610078961,0.00142971,85084.0,85083.0,0.36429465]
[1764610079287,0.00142971,85084.0,85083.0,0.36629465]
[1764610079830,0.00142971,85084.0,85083.0,0.13123007]
[1764610080084,0.00142971,85084.0,85083.0,0.26712913]
[1764610081334,0.00142971,85084.0,85083.0,0.26812913]